[Event "CIS Master Groups 2024"]
[Site "Vasto"]
[Date "2024.04.14"]
[Round "11.24"]
[White "Maione, Melissa"]
[Black "Ciraulo, Silvia"]
[Result "1-0"]
[ECO "B12"]
[WhiteElo "1936"]
[BlackElo "1685"]
[Annotator "NA RC"]
[PlyCount "67"]
[EventDate "2024.04.07"]
[EventType "team-tourn"]
[EventCountry "ITA"]
[SourceTitle "playchess.com"]
[Source "ChessBase"]
[SourceQuality "1"]
[TimeControl "40/5400+30:900+30"]

1. e4 {[%emt 0:00:47]} c6 {[%emt 0:00:13]} 2. d4 {[%emt 0:00:09]} d5 {[%emt 0:00:08]} 3. e5 {[%emt 0:00:07]} Bf5 {[%emt 0:00:11]} 4. h4 {[%emt 0:00:47]} Bd7 {[%emt 0:00:34]} 5. Nf3 {[%emt 0:00:37]} e6 {[%emt 0:01:30]} 6. Bd3 {[%emt 0:02:37]} Qb6 {[%emt 0:00:58]} 7. c3 {[%emt 0:04:03]} c5 {[%emt 0:03:12]} 8. O-O {[%emt 0:11:24]} Nc6 {[%emt 0:00:56]} 9. dxc5 {[%emt 0:05:27]} Bxc5 {[%emt 0:07:26]} 10. Qc2 {[%emt 0:03:08]} a5 {[%emt 0:08:52]} 11. Bf4 {[%emt 0:02:04]} Nge7 {[%emt 0:04:48]} 12. Nbd2 {[%emt 0:00:36]} Ng6 {[%emt 0:02:50]} 13. Bg3 {[%emt 0:00:29]} Qc7 {[%emt 0:01:28]} 14. Rfe1 {[%emt 0:01:15]} Rc8 {[%emt 0:05:49]} 15. Rac1 {[%emt 0:01:12]} Qb6 {[%emt 0:15:43]} 16. Nb3 {[%emt 0:08:47]} Be7 {[%emt 0:03:43]} 17. Qb1 {[%emt 0:00:41]} Na7 {[%emt 0:06:50]} 18. Nbd4 {[%emt 0:06:13]} Nb5 {[%emt 0:03:16]} 19. h5 {[%emt 0:03:27]} Nf8 {[%emt 0:00:17]} 20. Bf4 {[%emt 0:02:16]} g6 {[%emt 0:03:48]} 21. h6 {[%emt 0:03:19]} Bc6 {[%emt 0:01:52]} 22. Be3 {[%emt 0:03:50]} Bc5 {[%emt 0:02:41]} 23. a3 {[%emt 0:04:18]} Nd7 {[%emt 0:07:05]} 24. Qa2 {[%emt 0:17:10]} Ra8 {[%emt 0:04:24]} 25. Qb1 {[%emt 0:03:22]} O-O {[%emt 0:05:00]} 26. Qc2 {[%emt 0:15:25]} Rfc8 {[%emt 0:02:19]} 27. Qe2 {[%emt 0:00:00]} Na7 {[%emt 0:01:49]} 28. b4 {[%emt 0:00:00]} axb4 {[%emt 0:00:36]} 29. axb4 {[%emt 0:00:00]} Bxd4 {[%emt 0:00:17]} 30. Nxd4 {[%emt 0:00:00]} Qc7 {[%emt 0:00:16]} 31. b5 {[%emt 0:00:00]} Nxe5 {[%emt 0:01:30]} 32. Bf4 {[%emt 0:00:00]} Bd7 {[%emt 0:00:40]} 33. Bxe5 {[%emt 0:00:00]} Qd8 {[%emt 0:00:13]} 34. Qf3 {[%emt 0:00:00]} 1-0

[Event "CIS Master Groups 2024"]
[Site "Vasto"]
[Date "2024.04.14"]
[Round "12.1"]
[White "Shevchenko, Kirill"]
[Black "Saric, Ivan"]
[Result "1-0"]
[ECO "B13"]
[WhiteElo "2675"]
[BlackElo "2670"]
[Annotator "TA"]
[PlyCount "57"]
[EventDate "2024.04.07"]
[EventType "team-tourn"]
[EventCountry "ITA"]
[SourceTitle "playchess.com"]
[Source "ChessBase"]
[SourceQuality "1"]
[TimeControl "40/5400+30:900+30"]

{[%evp 27,57,29,35,40,40,39,46,53,59,50,51,51,106,116,156,110,166,169,176,179,183,167,417,407,368,103,2102,2102,1732,1732,29974,29977]} 1. e4 {[%emt 1:18:56]} c6 {[%emt 1:18:58]} 2. d4 {[%emt 0:00:49]} d5 {[%emt 0:00:28]} 3. exd5 {[%emt 0:00:28]} cxd5 {[%emt 0:00:29]} 4. c4 {[%emt 0:00:27]} Nf6 {[%emt 0:00:29]} 5. Nc3 {[%emt 0:00:28]} Nc6 {[%emt 0:00:30]} 6. Nf3 {[%emt 0:00:30]} Bg4 {[%emt 0:00:59]} 7. cxd5 {[%emt 0:00:30]} Nxd5 {[%emt 0:00:28]} 8. Qb3 {[%emt 0:00:28]} Bxf3 {[%emt 0:00:41]} 9. gxf3 {[%emt 0:00:29]} e6 {[%emt 0:00:28]} 10. Qxb7 {[%emt 0:00:41]} Nxd4 {[%emt 0:00:32]} 11. Bb5+ {[%emt 0:00:29]} Nxb5 {[%emt 0:00:29]} 12. Qc6+ {[%emt 0:00:28]} Ke7 {[%emt 0:00:31]} 13. Qc5+ {[%emt 0:00:28]} Ke8 {[%emt 0:01:17][%cal Be7e8,Be8f7,Bf7g8][%mdl 32]} 14. Qxb5+ {[%emt 0:00:39]} Qd7 {[%emt 0:00:28] [#]} 15. Nxd5 $1 {[%emt 0:01:26]} exd5 {[%emt 0:00:28]} 16. Qd3 {[%emt 0:01:32]} Bb4+ {[%emt 0:00:33]} 17. Kf1 $1 {[%emt 0:00:55] White is slightly better.} f6 {[%emt 0:01:21]} 18. Kg2 {[%emt 0:00:39]} Kf7 {[%emt 0:00:32]} 19. Bf4 {[%emt 0:01:26]} Rhe8 {[%emt 0:01:35]} (19... Rhd8 $14) 20. Rac1 {[%emt 0:01:03][%cal Ba1c1,Bc1c7,Bc7a7,Ba7c7][%mdl 32] Hoping for Rc7!} ({Much worse is} 20. Qxh7 $6 Rh8 21. Qd3 Qh3+ 22. Kg1 Rad8 $11) 20... Kg8 {[%emt 0:01:21]} 21. Rhd1 {[%emt 0:00:45] White is more active.} (21. Rc7 $142 Qe6 22. Rhc1) 21... Rad8 {[%emt 0:01:11] [#]} (21... Bf8 $16 {might work better.} 22. Qxd5+ Qxd5 23. Rxd5 a5) 22. Rc7 $1 $18 {[%emt 0:03:43]} Qe6 {[%emt 0:00:28]} 23. Rxa7 {[%emt 0:00:33]} Qe2 {[%emt 0:00:34]} 24. Rc7 {[%emt 0:01:34] Wards off Bc5} Qxb2 $2 {[%emt 0:02:46]} (24... Qxd3 25. Rxd3 Re2) 25. Rb1 {[%emt 0:00:44]} Qa3 {[%emt 0:00:28]} 26. Qf5 {[%emt 0:00:28]} (26. Rb3 $18 {and the rest is easy.} Qa5 27. Qf5) 26... Bd6 {[%emt 0:02:50][%mdl 8192]} (26... Kh8 $16) 27. Bxd6 {[%emt 0:01:16]} (27. Qxd5+ Kh8 28. Bxd6 Qxd6 $16) 27... Qxd6 {[%emt 0:00:44]} 28. Rbb7 {[%emt 0:00:29]} Qf8 {[%emt 0:00:35]} 29. Qg4 {[%emt 0:00:39] Black did not feel at home in the position after the opening.   Weighted Error Value: White=0.26 (precise) /Black=0.78.  Loses game:     	---       	Black=1      Missed win:     	White=1     	---        Mistake:       	White=1     	Black=3      Inaccurate:     	---       	Black=1      OK:         	White=3     	Black=3      Best:        	White=3     	Black=1      Strong:       	White=2     	---} ({Inferior is} 29. Rxg7+ Qxg7+ 30. Rxg7+ Kxg7 $11) 1-0

[Event "CIS Master Groups 2024"]
[Site "Vasto"]
[Date "2024.04.14"]
[Round "12.2"]
[White "Brunello, Sabino"]
[Black "Lodici, Lorenzo"]
[Result "1-0"]
[ECO "A20"]
[WhiteElo "2515"]
[BlackElo "2565"]
[Annotator "TA"]
[PlyCount "85"]
[EventDate "2024.04.07"]
[EventType "team-tourn"]
[EventCountry "ITA"]
[SourceTitle "playchess.com"]
[Source "ChessBase"]
[SourceQuality "1"]
[TimeControl "40/5400+30:900+30"]

{[%evp 9,85,56,65,56,55,38,54,0,49,51,65,49,61,44,59,73,83,54,333,351,331,326,335,87,117,107,159,20,95,117,104,110,97,112,108,119,151,50,183,141,204,170,165,167,165,153,151,181,235,29,29,27,35,0,0,0,0,0,0,0,0,0,232,225,1345,1339,1259,1204,29983,29984,29984,29985,29996,29997,29997,29998,29998,29999]} 1. c4 {[%emt 1:18:57]} e5 {[%emt 1:19:39][%cal Be7e5,Be5e4][%mdl 32]} 2. g3 {[%emt 0:00:36]} h5 {[%emt 0:00:28]} 3. Nf3 {[%emt 0:00:52]} e4 {[%emt 0:00:28]} 4. Nh4 {[%emt 0:00:28]} Be7 {[%emt 0:00:29]} 5. Nf5 {[%emt 0:00:41]} d6 {[%emt 0:00:27]} 6. Nxe7 {[%emt 0:00:36]} Qxe7 {[%emt 0:00:30]} 7. Nc3 {[%emt 0:00:51]} h4 {[%emt 0:02:02]} 8. Rg1 {[%emt 0:04:37]} (8. Nd5 $14 Qd8 9. Qc2) 8... hxg3 {[%emt 0:02:05]} (8... Nf6 $11) 9. Rxg3 $14 {[%emt 0:00:28]} Nf6 {[%emt 0:00:52]} 10. d3 {[%emt 0:00:58]} Rxh2 {[%emt 0:01:12]} 11. Bg5 {[%emt 0:01:23]} Qe5 {[%emt 0:00:29] Against Nd5} 12. Qd2 $1 {[%emt 0:02:30]} Nh5 {[%emt 0:02:44] Against Bf4} 13. Re3 {[%emt 0:00:52]} f5 {[%emt 0:00:28][%mdl 8192] [#]} (13... Kf8 $14 14. Rxe4 (14. Nxe4 Qf5 $11) 14... Qf5) 14. Nxe4 $1 $18 {[%emt 0:00:29][%mdl 512]} Kf7 {[%emt 0:01:45]} (14... fxe4 15. Rxe4 Nc6 16. Rxe5+ dxe5 17. Qe3 $18) 15. Nc3 {[%emt 0:00:39]} Qc5 {[%emt 0:00:35] [#]} 16. b4 $2 {[%emt 0:01:57]} Qd4 $16 {[%emt 0:00:58] [#]} 17. O-O-O $1 {[%emt 0:01:36]} (17. Re7+ Kg6 18. O-O-O (18. Rxc7 $2 Qxf2+ 19. Kd1 Qxf1+ $19) 18... Nc6 19. Rxc7 Nxb4 $14) 17... Be6 {[%emt 0:00:41]} (17... Nc6 $142) 18. Rf3 {[%emt 0:00:44]} (18. Rh3 $16 Rxh3 19. Bxh3) 18... Nd7 {[%emt 0:00:57]} (18... Nc6 $1 $11) 19. Be3 $36 {[%emt 0:00:30][%mdl 2048] White is in control.} Qf6 {[%emt 0:00:57]} 20. Kb1 {[%emt 0:00:37]} Ne5 {[%emt 0:00:28]} 21. Rh3 {[%emt 0:00:28]} Rxh3 {[%emt 0:01:28]} 22. Bxh3 {[%emt 0:00:28]} Kg8 {[%emt 0:00:29]} 23. f4 {[%emt 0:00:30]} (23. Nb5 $16 Qf7 24. Rg1 (24. Bxa7 c6 $16) (24. Nxa7 f4 $11)) 23... Nc6 {[%emt 0:00:34]} (23... Ng4 $14) 24. b5 {[%emt 0:00:31]} Nd4 {[%emt 0:00:34]} (24... Ne7 $16 {was called for.}) 25. Ne4 {[%emt 0:00:28]} fxe4 {[%emt 0:00:34]} 26. Bxd4 {[%emt 0:00:28]} Qxd4 {[%emt 0:00:29]} 27. Bxe6+ {[%emt 0:00:28]} Kf8 {[%emt 0:00:40] [#]} 28. Rh1 $1 {[%emt 0:00:32][%cal Bd1h1,Bh1h5,Bh5d5][%mdl 32]} Re8 {[%emt 0:00:40]} (28... e3 $142 29. Qe1 g6) 29. Bd7 $2 {[%emt 0:00:37]} ({White must play} 29. f5 $18 g6 30. Qg5 (30. fxg6 Rxe6 31. Qg5 Qe5 $11) (30. Qh6+ Qg7 $14)) 29... Re7 $11 {[%emt 0:00:32]} 30. Rxh5 {[%emt 0:00:31]} Rxd7 {[%emt 0:00:28][%mdl 4096] Endgame. KQR-KQR} 31. Rd5 {[%emt 0:00:29]} Qg1+ {[%emt 0:00:28]} 32. Kb2 {[%emt 0:00:31]} e3 {[%emt 0:00:37]} 33. Qc2 {[%emt 0:00:30]} Qe1 {[%emt 0:00:31]} 34. a3 {[%emt 0:00:30]} Rf7 {[%emt 0:00:31]} 35. c5 {[%emt 0:00:29]} Qa5 $2 {[%emt 0:01:00]} (35... Rxf4 $11 {and Black stays safe.} 36. cxd6 cxd6) 36. cxd6 $18 {[%emt 0:00:29]} cxd6 $2 {[%emt 0:00:28]} (36... g6 37. d4 (37. d7 Rxd7 38. Qc5+ Rd6 $16) 37... cxd6 38. Qxg6 Qd2+ 39. Kb3 Qd1+ 40. Kb4 (40. Qc2 Qxc2+ 41. Kxc2 Ke7 $18) 40... Qe1+ 41. Kb3 Qd1+ 42. Qc2 Qxc2+ 43. Kxc2 Ke7) 37. Qc8+ {[%emt 0:00:34]} Ke7 {[%emt 0:00:27]} 38. Qxb7+ {[%emt 0:00:30]} Ke6 {[%emt 0:00:32] [#]} 39. f5+ $1 {[%emt 0:00:28][%mdl 512] White mates.} Rxf5 {[%emt 0:00:34]} 40. Qc8+ {[%emt 0:00:28]} Kxd5 {[%emt 0:00:29]} 41. Qxf5+ {[%emt 0:15:28]} Kd4 {[%emt 0:15:28]} 42. Qe4+ {[%emt 0:00:33]} Kc5 {[%emt 0:00:27]} 43. Qc4+ {[%emt 0:00:39] Weighted Error Value: White=0.32/Black=0.47.  Loses game:     	---       	Black=2      Missed win:     	White=2     	---        Mistake:       	White=3     	Black=7      Inaccurate:     	White=2     	---        OK:         	White=11    	Black=11     Best:        	White=3     	Black=4      Strong:       	White=3     	---} 1-0

[Event "CIS Master Groups 2024"]
[Site "Vasto"]
[Date "2024.04.14"]
[Round "12.3"]
[White "Barp, Alberto"]
[Black "Dvirnyy, Danyyil"]
[Result "0-1"]
[ECO "D27"]
[WhiteElo "2470"]
[BlackElo "2480"]
[Annotator "TA"]
[PlyCount "90"]
[EventDate "2024.04.07"]
[EventType "team-tourn"]
[EventCountry "ITA"]
[SourceTitle "playchess.com"]
[Source "ChessBase"]
[SourceQuality "1"]
[TimeControl "40/5400+30:900+30"]

{[%evp 14,90,0,-22,-4,0,0,0,12,-13,51,40,45,-20,0,0,13,16,10,22,28,17,74,33,26,27,53,53,63,65,61,37,96,32,39,28,56,38,47,22,27,16,22,5,15,8,11,0,0,0,0,0,0,0,123,0,10,0,0,0,11,15,25,0,12,8,8,8,8,8,14,-55,-57,-55,-81,-677,-670,-646,-623]} 1. d4 {[%emt 1:18:55]} d5 {[%emt 1:19:04]} 2. c4 {[%emt 0:00:29]} dxc4 {[%emt 0:00:28]} 3. Nf3 {[%emt 0:00:28]} Nf6 {[%emt 0:00:29]} 4. e3 {[%emt 0:00:30]} e6 {[%emt 0:00:29]} 5. Bxc4 {[%emt 0:00:29]} c5 {[%emt 0:00:28]} 6. O-O {[%emt 0:00:31]} a6 {[%emt 0:00:28]} 7. e4 {[%emt 0:01:11]} Nxe4 {[%emt 0:01:08]} 8. Qe2 {[%emt 0:00:31] is now more promising than 8.d5. D27: Queen's Gambit Accepted: Classical main line: 7 e4!? and 7 a4.} Nf6 {[%emt 0:00:53]} 9. d5 {[%emt 0:00:32]} Nxd5 {[%emt 0:02:18]} 10. Rd1 {[%emt 0:00:29]} Be7 {[%emt 0:00:54]} 11. Nc3 {[%emt 0:00:28]} O-O {[%emt 0:00:56]} (11... Nc6 $1 $11) 12. Nxd5 $14 {[%emt 0:04:56]} exd5 {[%emt 0:00:29]} 13. Rxd5 {[%emt 0:00:29]} ({White should play} 13. Bxd5 $14 Qc7 14. Re1 (14. Bf4 Qxf4 15. Qxe7 Nd7 $16)) 13... Qc7 $146 {[%emt 0:00:57]} (13... Qe8 $5) ({Predecessor:} 13... Qe8 14. Bg5 Be6 15. Bxe7 Qxe7 16. Ng5 Nc6 17. Qh5 h6 18. Nxe6 Qxe6 19. Rxc5 Qe7 20. Rc1 Nd4 21. Bf1 {½-½ Santiago,Y (2466)-Bachmann,A (2611) Asuncion CIT op 2023 (9)}) 14. Ng5 {[%emt 0:00:41]} Bxg5 {[%emt 0:02:48]} 15. Rxg5 {[%emt 0:00:32]} (15. Bxg5 Be6 16. Rd2 Re8 $15) 15... Nc6 {[%emt 0:01:31]} 16. Rxc5 {[%emt 0:00:53]} Bd7 {[%emt 0:00:59]} 17. Be3 {[%emt 0:00:46]} Rae8 {[%emt 0:01:08]} (17... Be6 $11 {keeps the balance.}) 18. Rc1 {[%emt 0:03:21]} (18. Qc2 $5) 18... Re5 {[%emt 0:01:01]} 19. Bd5 {[%emt 0:01:17]} Rfe8 {[%emt 0:00:39]} 20. Qd2 {[%emt 0:00:33]} Rf5 {[%emt 0:01:15]} 21. h3 {[%emt 0:00:45]} h6 {[%emt 0:00:34]} 22. b4 {[%emt 0:00:37]} Be6 {[%emt 0:00:53]} (22... Rd8 $14 23. Qe2 Bc8 24. Bxc6 Rxc5 25. Rxc5 bxc6) 23. Bxe6 {[%emt 0:00:41]} ({Better is} 23. Bxc6 $16 bxc6 24. Rxc6) 23... fxe6 $14 {[%emt 0:00:33]} 24. a4 {[%emt 0:00:50]} Rxc5 {[%emt 0:00:28]} 25. Rxc5 {[%emt 0:00:32]} Rd8 {[%emt 0:00:32]} 26. Qe2 {[%emt 0:00:51]} Qd6 {[%emt 0:00:54]} 27. b5 {[%emt 0:00:38]} axb5 {[%emt 0:00:29]} 28. axb5 {[%emt 0:00:29]} Ne7 {[%emt 0:00:28]} 29. Rc1 {[%emt 0:00:38]} Nd5 {[%emt 0:00:29]} 30. g3 {[%emt 0:01:00]} Qe5 {[%emt 0:00:34]} 31. Qd2 {[%emt 0:00:35]} Ra8 {[%emt 0:00:31]} 32. Bd4 {[%emt 0:00:29]} Qf5 {[%emt 0:00:30]} 33. Kh2 {[%emt 0:00:39]} Ra3 {[%emt 0:00:28] [#]} (33... Kh7 $11 {remains equal.}) 34. Qe2 {[%emt 0:00:37]} (34. Bxg7 $1 $16 {And now Qb2 would win.} Kxg7 35. Qb2+ Kf7 36. Qxa3 Qxf2+ 37. Kh1) 34... Rd3 {[%emt 0:00:29]} 35. Ba1 {[%emt 0:00:31]} Kh7 {[%emt 0:00:59]} 36. Re1 {[%emt 0:00:28]} Ra3 {[%emt 0:01:03]} 37. Be5 {[%emt 0:00:30]} Rb3 {[%emt 0:00:29]} 38. Kg2 {[%emt 0:00:34]} Nb4 {[%emt 0:00:31]} 39. g4 {[%emt 0:00:30]} Qg6 {[%emt 0:00:28]} 40. Bg3 {[%emt 0:00:29]} Nd3 {[%emt 0:00:29]} 41. Rd1 {[%emt 0:15:30]} e5 {[%emt 0:15:34]} 42. h4 {[%emt 0:00:32]} (42. Bxe5 $11 Rxb5 43. Qxd3 (43. Rxd3 Rxe5 44. Qxe5 Qxd3 $15) 43... Qxd3 44. Rxd3 Rxe5 45. Rd7) 42... e4 $1 $15 {[%emt 0:00:31]} 43. h5 {[%emt 0:00:28]} Qe6 {[%emt 0:00:29]} 44. f3 $2 {[%emt 0:00:32][%mdl 8192]} (44. Rd2 $17) 44... Nf4+ $1 $19 {[%emt 0:00:34]} (44... Rxb5 $2 {too greedy.} 45. Rxd3 (45. fxe4 $2 Rb2 $19) (45. Qxe4+ Qxe4 46. fxe4 Rb2+ 47. Kf3 Rb3 $11) 45... Rb4 46. Kh3 $18) 45. Bxf4 {[%emt 0:00:30]} exf3+ {[%emt 0:00:39]} ({Worse is} 45... Rxf3 46. Bh2 $14) 0-1

[Event "CIS Master Groups 2024"]
[Site "Vasto"]
[Date "2024.04.14"]
[Round "12.4"]
[White "Gilevych, Artem"]
[Black "Cappelletto, Joshuaede"]
[Result "0-1"]
[ECO "D42"]
[WhiteElo "2417"]
[BlackElo "2306"]
[Annotator "TA"]
[PlyCount "41"]
[EventDate "2024.04.07"]
[EventType "team-tourn"]
[EventCountry "ITA"]
[SourceTitle "playchess.com"]
[Source "ChessBase"]
[SourceQuality "1"]
[TimeControl "40/5400+30:900+30"]

{[%evp 15,41,16,27,9,18,-25,-27,0,-12,-35,14,-385,-399,-392,-398,-413,-355,-401,-406,-413,-400,-733,-754,-754,-739,-722,-724,-780]} 1. e4 {[%emt 1:18:56]} c5 {[%emt 1:18:55]} 2. c3 {[%emt 0:00:28]} d5 {[%emt 0:00:30]} 3. exd5 {[%emt 0:00:31]} Nf6 {[%emt 0:00:28]} 4. d4 {[%emt 0:00:43]} Nxd5 {[%emt 0:00:31]} 5. Nf3 {[%emt 0:00:40]} cxd4 {[%emt 0:01:01]} 6. cxd4 {[%emt 0:00:29]} Nc6 {[%emt 0:00:36]} 7. Nc3 {[%emt 0:00:38]} e6 {[%emt 0:00:34]} 8. Bd3 {[%emt 0:00:53]} Be7 {[%emt 0:00:29][%cal Bf8e7,Be7f6,Bf6c3][%mdl 32]} 9. a3 {[%emt 0:00:39]} O-O {[%emt 0:00:31]} 10. Bc2 {[%emt 0:00:37]} Nxc3 {[%emt 0:01:52]} 11. bxc3 {[%emt 0:00:45] Black has an edge.} Bf6 {[%emt 0:00:34]} 12. h4 {[%emt 0:00:45][%cal Oc2h7] Black must now prevent Bxh7+!} e5 {[%emt 0:01:12] [#]} (12... Qa5 $15 13. Ng5 g6 (13... Nxd4 14. Bxh7+ Kh8 15. Qh5 Bxg5 16. hxg5 Qxc3+ 17. Kd1) (13... Qxc3+ $2 14. Bd2 $18)) 13. Bxh7+ $2 {[%emt 0:03:01][%mdl 8192]} Kxh7 $19 {[%emt 0:00:29]} 14. Ng5+ {[%emt 0:00:28]} Kg8 {[%emt 0:00:28]} 15. d5 {[%emt 0:02:56] [#]} e4 $1 {[%emt 0:01:22]} 16. dxc6 {[%emt 0:01:51]} (16. O-O Ne5) 16... Bxc3+ {[%emt 0:00:29]} 17. Bd2 {[%emt 0:00:29] [#]} Bg4 $1 {[%emt 0:00:57] A strong pair of Bishops.} (17... Bxa1 $2 18. cxb7 Rb8 (18... Bxb7 $2 19. Qh5 $18) 19. bxc8=Q (19. Qxa1 $2 Rxb7 20. Bb4 Qd3 $19) (19. bxc8=R Qxc8 20. O-O Bf6 $17) 19... Qxc8 20. O-O $19 (20. Qxa1 $2 Qc2 $17)) 18. f3 {[%emt 0:04:11]} (18. Qc2 $142 Bxa1 19. O-O) 18... exf3 {[%emt 0:00:36] Black is clearly winning.} ({Weaker is} 18... Qd4 19. Bxc3 Qxc3+ 20. Kf2 exf3 21. Rc1 Qb2+ (21... Qxa3 22. gxf3 Bc8 23. Qc2 $14) 22. Qc2 Qxc2+ (22... Qxa3 23. Qh7#) 23. Rxc2 fxg2 24. Kxg2 $19) 19. gxf3 {[%emt 0:00:50]} Re8+ {[%emt 0:00:44]} 20. Kf2 {[%emt 0:00:34]} Qd4+ {[%emt 0:01:28]} ({Less strong is} 20... Qxd2+ 21. Qxd2 Bxd2 22. cxb7 Be3+ 23. Kg3 $15) 21. Kg3 {[%emt 0:00:36] White did not feel at home in the position after the opening.   Weighted Error Value: White=1.16/Black=0.08 (flawless) .  Loses game:     	White=1     	---        Mistake:       	White=1     	Black=1      Inaccurate:     	White=1     	---        OK:         	White=1     	Black=1      Best:        	White=1     	Black=3      Strong:       	---       	Black=1} 0-1

[Event "CIS Master Groups 2024"]
[Site "Vasto"]
[Date "2024.04.14"]
[Round "13.1"]
[White "Saric, Ivan"]
[Black "Shevchenko, Kirill"]
[Result "1-0"]
[ECO "B33"]
[WhiteElo "2670"]
[BlackElo "2675"]
[Annotator "TA"]
[PlyCount "101"]
[EventDate "2024.04.07"]
[EventType "team-tourn"]
[EventCountry "ITA"]
[SourceTitle "playchess.com"]
[Source "ChessBase"]
[SourceQuality "1"]
[TimeControl "40/5400+30:900+30"]

{[%evp 24,101,18,6,20,8,15,16,22,22,21,10,20,12,17,0,0,0,0,0,6,8,28,12,24,20,24,8,179,196,194,196,195,196,196,196,317,315,394,389,517,554,595,595,632,511,1427,1365,2204,1777,1937,1735,5306,5089,29964,29965,29969,29970,29970,29969,29968,29969,29984,29985,29985,29986,29986,29980,29982,29982,29981,29976,29986,29987,29987,29988,29990,29991,29991,29992]} 1. e4 {[%emt 1:27:56]} c5 {[%emt 1:27:57]} 2. Nf3 {[%emt 0:00:30]} Nc6 {[%emt 0:00:29]} 3. d4 {[%emt 0:00:37]} cxd4 {[%emt 0:00:29]} 4. Nxd4 {[%emt 0:00:29]} Nf6 {[%emt 0:00:29]} 5. Nc3 {[%emt 0:00:28]} e5 {[%emt 0:00:42]} 6. Ndb5 {[%emt 0:00:29]} d6 {[%emt 0:00:29]} 7. Bg5 {[%emt 0:00:29]} a6 {[%emt 0:00:28]} 8. Na3 {[%emt 0:00:29]} b5 {[%emt 0:00:29]} 9. Nd5 {[%emt 0:00:29]} Be7 {[%emt 0:00:29]} 10. Bxf6 {[%emt 0:00:29]} Bxf6 {[%emt 0:00:29]} 11. c3 {[%emt 0:00:36][%cal Bc2c3,Bc3b4][%mdl 32]} Rb8 {[%emt 0:00:33]} 12. Nc2 {[%emt 0:00:30]} Bg5 {[%emt 0:00:29]} 13. a4 {[%emt 0:00:58]} bxa4 {[%emt 0:00:35]} 14. Ncb4 {[%emt 0:00:29]} Nxb4 {[%emt 0:00:31]} 15. cxb4 {[%emt 0:00:29]} O-O {[%emt 0:00:30] The position is equal.} 16. Rxa4 {[%emt 0:00:41]} a5 {[%emt 0:00:30]} 17. b5 {[%emt 0:01:02]} Bd7 {[%emt 0:00:38]} 18. Nc3 {[%emt 0:00:31][%cal Of1c4]} d5 {[%emt 0:00:49]} 19. Nxd5 {[%emt 0:00:44]} Bxb5 {[%emt 0:00:37]} 20. Bxb5 {[%emt 0:00:29]} Rxb5 {[%emt 0:00:29]} 21. O-O {[%emt 0:00:30][%cal Bh1f1,Bf1d1,Bd1d6,Bd6f6,Bf6a6][%mdl 32]} Rxb2 {[%emt 0:01:00]} 22. Qa1 {[%emt 0:00:29][%csl LRa5,LRb2]} Rb5 {[%emt 0:00:29]} 23. Qxe5 {[%emt 0:00:38][%cal Od5f6] [#] Nf6+! would now be deadly.} Kh8 {[%emt 0:00:30]} 24. Rd1 {[%emt 0:00:52]} Bf6 {[%emt 0:01:32]} 25. Qh5 {[%emt 0:00:38]} (25. Qg3 {simplifies} Qb8 26. Nxf6 Qxg3 27. hxg3 gxf6 28. f3) 25... Qd6 $2 {[%emt 0:01:14] Loses the game.} (25... Qb8 $11 {and Black has nothing to worry.}) 26. Nxf6 $18 {[%emt 0:00:52]} Rxh5 {[%emt 0:00:29]} 27. Rxd6 {[%emt 0:00:29]} gxf6 {[%emt 0:00:29]} 28. Rxf6 {[%emt 0:00:34][%mdl 4096] Endgame. KRR-KRR} Kg7 {[%emt 0:00:30]} 29. Ra6 {[%emt 0:00:34][%cal Of2f3]} Re8 {[%emt 0:00:30]} (29... Rb8 {was necessary.} 30. h3 (30. R6xa5 $2 Rb1#) 30... Rbb5) 30. f3 $1 {[%emt 0:00:32]} (30. R6xa5 Rxe4 31. Rxe4 Rxa5 $16) 30... Ree5 {[%emt 0:00:32]} 31. g4 {[%emt 0:00:30]} Rhg5 {[%emt 0:00:31]} 32. h4 {[%emt 0:00:36][%cal Bh2h4,Bh4h5][%mdl 32]} Rg6 {[%emt 0:00:28]} 33. R4xa5 {[%emt 0:00:32] [#] White wants to mate with Rxg6+.} Re7 {[%emt 0:00:30]} 34. h5 {[%emt 0:00:35]} Rxa6 {[%emt 0:00:30]} (34... Rge6 $142 35. Kg2 h6) 35. Rxa6 {[%emt 0:00:29] aiming for h6+. KR-KR} h6 {[%emt 0:00:29]} 36. Kf2 {[%emt 0:00:29]} Rc7 {[%emt 0:00:30]} 37. Kg3 {[%emt 0:00:29] Kf4 is the strong threat.} Rc3 {[%emt 0:00:28]} 38. Kf4 {[%emt 0:00:29]} Rb3 {[%emt 0:00:29]} 39. e5 {[%emt 0:00:31] White mates.} Rc3 {[%emt 0:00:30]} 40. Ke4 {[%emt 0:00:29]} Rc7 {[%emt 0:00:31]} 41. f4 {[%emt 0:15:49][%cal Bf3f4,Bf4f5,Bf5e6,Be6e7][%mdl 32]} Rb7 42. Kf5 {[%emt 0:00:10]} Re7 {[%emt 0:16:00]} 43. g5 {[%emt 0:00:33]} hxg5 {[%emt 0:00:30]} 44. h6+ {[%emt 0:00:34]} Kh7 {[%emt 0:00:29]} 45. Kxg5 {[%emt 0:00:29]} Rd7 {[%emt 0:00:32]} 46. f5 {[%emt 0:00:30]} Rc7 {[%emt 0:00:30]} 47. Kf6 {[%emt 0:00:38]} Rb7 {[%emt 0:00:34]} 48. e6 {[%emt 0:00:29]} fxe6 {[%emt 0:00:29]} 49. fxe6 {[%emt 0:00:29]} Rb1 {[%emt 0:00:31]} 50. e7 {[%emt 0:00:30]} Rf1+ {[%emt 0:00:30]} 51. Ke6 {[%emt 0:00:29] Weighted Error Value: White=0.06 (flawless) /Black=0.59.  Loses game:     	---       	Black=1      Mistake:       	---       	Black=2      Inaccurate:     	---       	Black=2      OK:         	White=9     	Black=8      Best:        	White=2     	---        Strong:       	White=1     	---} 1-0